Cogmind - Beta 15 @@@ ROGUE MODE // 2025.07.27 @ 20:33:59 Player: SnailSD Result: Destroyed by KD-6X2(z) with Zionite Laser-S Performance ------------- Evolutions (3) 1500 Regions Visited (9) 1800 Robots Destroyed (52) 260 Value Destroyed (1413) 1413 Prototype IDs (4) 80 Alien Tech Used (0) 0 Bonus (600) 600 TOTAL SCORE: 5653 Bonus ------- Met Imprinter 300 Was Imprinted 300 Cogmind --------- Core Integrity 0/700 Matter 300/300 Energy 99/100 System Corruption 0% Temperature Cool (9) Movement Core (50) Location -7/Deep Caves Parts ------- > --- POWER (1) -------- (None) > --- PROPULSION (4) --- (None) > --- UTILITY (4) ------ (None) > --- WEAPON (4) ------- (None) > --- INVENTORY (5) ---- Micro Nuclear Core Carbon-fiber Leg Armored Huge Wheel Power Maul Peak State ------------ > --- POWER ------------ Heavy Ion Engine > --- PROPULSION ------- Carbon-fiber Leg Carbon-fiber Leg Carbon-fiber Leg Makeshift Leg > --- UTILITY ---------- Large Storage Unit Advanced Visual Processing Unit 0b10 Decoder Chip [Generic] Improved Medium Armor Plating > --- WEAPON ----------- Makeshift Sword Makeshift Sword Makeshift Sword Makeshift Sword > --- INVENTORY -------- Micro Nuclear Core Micro Nuclear Core Micro Nuclear Core Aluminum Leg Carbon-fiber Leg Armored Huge Wheel Large Storage Unit High-capacity Storage Unit Advanced Beam Rifle Advanced Beam Rifle Mini Assault Cannon Improved Grenade Launcher Power Maul Makeshift Sword [Rating: 50] Favorites ----------- Power Heavy Ion Engine Engine Heavy Ion Engine Propulsion Carbon-fiber Leg Leg Carbon-fiber Leg Wheel Compact Wheel Utility Large Storage Unit Device Kinecellerator Storage Large Storage Unit Processor Advanced Visual Processing Unit Protection Improved Medium Armor Plating Weapon Advanced Beam Rifle Energy Gun Advanced Beam Rifle Energy Cannon Beam Cannon Ballistic Gun Autogun Ballistic Cannon Light Cannon Launcher Improved Grenade Launcher Impact Weapon Maul Slashing Weapon Makeshift Sword Special Melee Weapon Improved Datajack Build | -11 -10 -9 -8 -8 -7 -7 -7 -7 -7 ------- Run | Yrd Mat Mat Mat Sto Fac Low Low Zio Dee Slots Evolved 6 | . . 2 2 . 2 . . . . Power . | . . . . . . . . . . Propulsion 2 | . . . 1 . 1 . . . . Utility 2 | . . . 1 . 1 . . . . Weapon 2 | . . 2 . . . . . . . Parts Attached 48 | 7 9 7 5 8 4 1 1 6 . Power 4 | 1 2 1 . . . . . . . Engine 4 | 1 2 1 . . . . . . . Core . | . . . . . . . . . . Reactor . | . . . . . . . . . . Propulsion 11 | 2 1 . 1 3 2 . 1 1 . Treads . | . . . . . . . . . . Leg 7 | . . . . 3 2 . 1 1 . Wheel 4 | 2 1 . 1 . . . . . . Hover . | . . . . . . . . . . Flight . | . . . . . . . . . . Utility 10 | 2 . 3 2 . 2 . . 1 . Device 2 | 1 . . 1 . . . . . . Storage 3 | 1 . 2 . . . . . . . Processor 3 | . . 1 1 . . . . 1 . Hackware . | . . . . . . . . . . Protection 2 | . . . . . 2 . . . . Artifact . | . . . . . . . . . . Weapon 23 | 2 6 3 2 5 . 1 . 4 . Energy Gun 6 | 2 . . 1 3 . . . . . Energy Cannon 3 | . 3 . . . . . . . . Ballistic Gun 2 | . 1 1 . . . . . . . Ballistic Cannon 4 | . 2 1 . 1 . . . . . Launcher 2 | . . 1 . 1 . . . . . Special Weapon . | . . . . . . . . . . Impact Weapon 1 | . . . 1 . . . . . . Slashing Weapon 4 | . . . . . . . . 4 . Piercing Weapon . | . . . . . . . . . . Special Melee Weapon 1 | . . . . . . 1 . . . Unidentified Prototypes 3 | . . 1 . 2 . . . . . Parts Lost 13 | . 4 . . 3 . . . . 6 Power 2 | . 1 . . . . . . . 1 Propulsion 7 | . 1 . . 2 . . . . 4 Utility 2 | . 1 . . . . . . . 1 Weapon 2 | . 1 . . 1 . . . . . Highest Loss Streak 6 | . 3 . . 1 . . . . 6 To Critical Strikes . | . . . . . . . . . . Average Backups 12 | 3 7 8 13 13 12 13 14 13 13 Power 3 | . . 1 4 4 4 4 4 3 2 Propulsion 2 | 2 4 3 2 2 1 3 4 3 2 Utility 2 | . 1 2 2 3 2 2 2 2 1 Weapon 3 | . 1 2 4 3 3 3 3 5 5 Tool/Special . | . . . . . . . . . . Unused Backups 27 | . 4 3 3 3 . 1 1 2 10 Power 6 | . . 1 1 . . . . 1 3 Propulsion 8 | . 3 . . . . 1 1 1 2 Utility 4 | . . 2 . . . . . . 2 Weapon 9 | . 1 . 2 3 . . . . 3 Tool/Special . | . . . . . . . . . . Average Slot Usage (%) 97 | . 87 91 98 95 98 100 100 99 89 Engine 7 | . 10 10 9 9 7 7 7 7 5 Leg 20 | . . . . 10 30 30 30 30 26 Wheel 7 | . 26 22 27 13 . . . . . Device 2 | . 8 . 7 9 5 . . . . Storage 8 | . 14 11 9 9 7 7 7 7 6 Processor 8 | . . 9 8 9 7 7 7 12 14 Protection 7 | . . . . . 8 15 15 9 5 Energy Gun 12 | . 9 . 6 16 22 23 23 1 . Ballistic Cannon 9 | . 2 33 27 19 7 7 7 . . Slashing Weapon 8 | . . . . . . . . 27 28 Peak Build Rating 50 | 9 9 14 23 38 43 41 45 50 50 Average Rating 35 | 5 7 12 22 31 41 40 43 48 43 On Entrance 26 | . 9 6 14 23 38 40 41 45 50 Naked Turns 14 | . . . . . . . . . 14 Heaviest Build 53 | 15 17 40 44 45 53 48 48 48 43 Greatest Support 65 | 26 32 32 42 42 50 50 60 65 65 Greatest Overweight (x) 9 | . . 1 1 4 1 . 1 . 9 Average Overweight (x) . | . . . . 1 . . . . . Largest Inventory Capacity 15 | 8 8 15 15 15 15 15 15 15 15 Average Capacity 14 | 7 8 12 15 15 15 15 15 15 14 Most Carried 15 | 8 8 9 15 15 13 15 15 15 15 Average Carried 13 | 3 7 8 13 13 12 13 14 14 14 Final Capacity 15 | 8 8 15 15 15 15 15 15 15 5 Final Carried 15 | 8 8 9 15 13 12 15 15 15 5 Class Distribution -------------------- 33% | Tank 26% | Derelict-Mutant 23% | Gunner 9% | Mutant 6% | Skirmisher Dominant Class ---------------- Mutant | -10/Materials Skirmisher | -9/Materials Gunner | -8/Materials Gunner | -8/Storage Gunner | -7/Factory Tank | -7/Lower Caves Tank | -7/Lower Caves Derelict-Mutant | -7/Zion Derelict-Mutant | -7/Deep Caves Resources | -11 -10 -9 -8 -8 -7 -7 -7 -7 -7 ----------- Run | Yrd Mat Mat Mat Sto Fac Low Low Zio Dee Matter Collected 1892 | 270 180 233 99 600 8 262 180 60 . Remotely . | . . . . . . . . . . Salvage Created 2030 | 112 455 207 93 738 30 145 250 . . Parts 85 | 5 17 11 4 35 3 4 6 . . Haulers Intercepted 6 | . 1 1 . 4 . . . . . Recyclers Shooed 1 | . . . . 1 . . . . . Parts Field Recycled . | . . . . . . . . . . Retrieved Matter . | . . . . . . . . . . Parts Self-Destructed 12 | . . . . . . 6 6 . . Prevented 5 | . . . . . . 5 . . . Kills | -11 -10 -9 -8 -8 -7 -7 -7 -7 -7 ------- Run | Yrd Mat Mat Mat Sto Fac Low Low Zio Dee Combat Hostiles Destroyed 33 | . 7 6 2 13 2 2 1 . . Guns 9 | . 3 . . 3 1 1 1 . . Cannons 17 | . 3 3 2 8 . 1 . . . AOE 6 | . . 3 . 2 1 . . . . Classes Destroyed 10 | 2 5 . 1 . . 1 1 . . Worker 2 | . 1 . . . 1 . . . . Tunneler 1 | 1 . . . . . . . . . Hauler 6 | . 1 1 . 4 . . . . . Recycler 6 | 1 2 1 . 2 . . . . . Watcher 4 | . 1 1 . 2 . . . . . Swarmer 9 | . 3 4 . . 2 . . . . Grunt 17 | . 4 2 . 10 . 1 . . . Sentry 5 | . . . 2 3 . . . . . Hunter 1 | . . . . . . . 1 . . Programmer 1 | . . . . . . 1 . . . Decomposer 1 | . . . . . . 1 . . . Packrat 4 | . . . . . . 1 3 . . Best Kill Streak 7 | 2 6 4 1 7 3 1 1 . . Combat Bots Only 4 | . 2 4 1 4 2 1 1 . . Max Kills in Single Turn 3 | 1 1 3 1 2 1 1 1 . . Gunslinging . | . . . . . . . . . . Exploded 3 | . . 3 . 1 1 . . . . Melee . | . . . . . . . . . . Uniques/NPCs Destroyed . | . . . . . . . . . . Combat | -11 -10 -9 -8 -8 -7 -7 -7 -7 -7 -------- Run | Yrd Mat Mat Mat Sto Fac Low Low Zio Dee Hostile Shots Fired 242 | . 89 19 6 39 15 9 8 . 57 Missed 71 | . 23 5 2 12 6 2 1 . 20 Hits 171 | . 66 14 4 27 9 7 7 . 37 Projectile 171 | . 66 14 4 27 9 7 7 . 37 Critical Strikes 3 | . 3 . . . . . . . . Damage Taken 3056 | . 662 154 64 476 167 105 236 . 1192 Core 1051 | . 193 9 35 95 13 14 119 . 573 Absorbed by Shields . | . . . . . . . . . . Core Remaining (%) 73 | 100 22 97 . 76 . . . . . Volleys Fired 123 | 5 39 14 3 37 6 10 9 . . Largest 4 | 2 2 4 4 4 3 4 4 . . Hottest 223 | 100 120 113 153 223 162 223 223 . . Shots Fired 353 | 10 74 40 12 133 10 40 34 . . Gun 139 | 10 37 2 3 28 4 30 25 . . Cannon 205 | . 37 36 9 102 2 10 9 . . Launcher 9 | . . 2 . 3 4 . . . . Special . | . . . . . . . . . . Kinetic 177 | . 7 38 9 102 2 10 9 . . Thermal 167 | 10 67 . 3 28 4 30 25 . . Explosive 9 | . . 2 . 3 4 . . . . Electromagnetic . | . . . . . . . . . . Robot Hit Streak 9 | 7 7 5 8 7 1 3 9 . . Robot Miss Streak 7 | 1 7 7 1 3 2 5 7 . . Penetration Max . | . . . . . . . . . . Secondary Targets . | . . . . . . . . . . Shots Hit Robots 173 | 7 40 17 7 65 3 15 15 . 4 Core Hits 80 | 3 16 9 2 33 6 5 6 . . Critical Kills . | . . . . . . . . . . Critical Parts Destroyed . | . . . . . . . . . . Critical Strikes 12 | . 3 2 1 2 . 1 2 . 1 Burn 7 | . 3 . . 1 . 1 2 . . Blast 4 | . . 2 1 1 . . . . . Sever 1 | . . . . . . . . . 1 Melee Attacks 11 | . . . 3 . . 1 . 3 4 Impact 3 | . . . 3 . . . . . . Slashing 7 | . . . . . . . . 3 4 Piercing . | . . . . . . . . . . Sneak Attacks 1 | . . . . . . 1 . . . Combat Hostiles . | . . . . . . . . . . Follow-up Attacks 2 | . . . . . . . . . 2 Damage Inflicted 4328 | 88 579 427 131 1871 350 358 377 . 147 Guns 1352 | 88 337 13 34 320 40 240 280 . . Cannons 2038 | . 242 293 97 1191 . 118 97 . . Explosions 791 | . . 121 . 360 310 . . . . Melee 147 | . . . . . . . . . 147 Ramming . | . . . . . . . . . . Kinetic 1833 | . 24 306 97 1191 . 118 97 . . Thermal 1557 | 88 555 . 34 320 40 240 280 . . Explosive 773 | . . 121 . 360 292 . . . . Electromagnetic 18 | . . . . . 18 . . . . Impact . | . . . . . . . . . . Slashing 147 | . . . . . . . . . 147 Piercing . | . . . . . . . . . . Highest Corruption 1 | . . . . 1 . . . . . Average Corruption 1 | . . . . 1 . . . . . Corruption Purged . | . . . . . . . . . . Corruption Blocked . | . . . . . . . . . . Effects 1 | . . . . 1 . . . . . Parts Rejected 1 | . . . . 1 . . . . . Overload Shots . | . . . . . . . . . . Overflow Damage 133 | . 38 5 . 14 3 24 41 . 8 Projectiles 79 | . . . . 14 . 24 41 . . Explosions 46 | . 38 5 . . 3 . . . . Melee 8 | . . . . . . . . . 8 Knockbacks 18 | . . 5 . 10 . . 3 . . Impact . | . . . . . . . . . . Kinetic 18 | . . 5 . 10 . . 3 . . Secondary . | . . . . . . . . . . Self-Inflicted Damage 139 | . 71 38 . . 30 . . . . Shots 3 | . 1 1 . . 1 . . . . Rammed . | . . . . . . . . . . Targets Rammed . | . . . . . . . . . . Kicked . | . . . . . . . . . . Crushed . | . . . . . . . . . . Highest Temperature 566 | 156 534 81 93 426 156 436 566 . 9 Average Temperature 158 | 71 190 29 49 144 77 168 257 . 5 Received Heat Transfer 732 | . 129 9 18 225 . 18 . . 333 Effects 29 | . 9 . . 6 . 4 10 . . Shutdowns 5 | . 1 . . 2 . . 2 . . Energy Bleed 5 | . 1 . . 1 . 2 1 . . Interference 5 | . . . . 2 . 2 1 . . Matter Decay 5 | . 2 . . 1 . . 2 . . Short Circuit 2 | . 2 . . . . . . . . Damage (major) 6 | . 3 . . . . . 3 . . Damage (core) 1 | . . . . . . . 1 . . Siege Activations . | . . . . . . . . . . Martial Activations . | . . . . . . . . . . Shielding Activations . | . . . . . . . . . . Robots Disrupted . | . . . . . . . . . . Combat Hostiles . | . . . . . . . . . . Robots Corrupted . | . . . . . . . . . . Combat Hostiles . | . . . . . . . . . . Parts Fried . | . . . . . . . . . . Impact Corruptions . | . . . . . . . . . . Robots Melted 1 | . 1 . . . . . . . . Combat Hostiles 1 | . 1 . . . . . . . . Parts Melted 5 | 1 3 . . . . 1 . . . Heat Transferred 3885 | 259 1665 . 74 666 74 481 666 . . Parts Sabotaged . | . . . . . . . . . . Parts Stolen . | . . . . . . . . . . Parts Stripped . | . . . . . . . . . . Power Chain Reactions . | . . . . . . . . . . Alert | -11 -10 -9 -8 -8 -7 -7 -7 -7 -7 ------- Run | Yrd Mat Mat Mat Sto Fac Low Low Zio Dee Maximum Alert Level . | . . . . . . . . . . Low Security (%) 100 | 100 100 100 100 100 100 . . . . Level 1 . | . . . . . . . . . . Level 2 . | . . . . . . . . . . Level 3 . | . . . . . . . . . . Level 4 . | . . . . . . . . . . Level 5 . | . . . . . . . . . . High Security . | . . . . . . . . . . Max Security . | . . . . . . . . . . Peak Influence 190 | 5 108 146 30 190 114 . . . . Initial 65 | . . 32 27 4 65 . . . . Average 82 | 1 62 90 9 132 62 . . . . Influence Increases 1172 | 10 265 173 64 456 109 65 30 . . Destroy 0b10 Robot/C 660 | . 140 120 40 260 40 40 20 . . Destroy 0b10 Robot/NC 95 | 10 25 15 . 40 5 . . . . Destroy Leader 170 | . 34 24 20 62 10 10 10 . . Successful Hack 11 | . . . . 11 . . . . . Disable Machine 90 | . 30 . . 45 15 . . . . Destroy Structure 86 | . 21 14 4 23 24 . . . . Partial Spotted 15 | . 15 . . . . . . . . Lose Combat Pursuer 45 | . . . . 15 15 15 . . . Influence Decreases 1172 | 10 187 186 118 323 189 129 30 . . Entered New Map 195 | . . 46 38 7 79 25 . . . Time Decay 907 | 10 147 140 80 286 110 104 30 . . Lost Part 70 | . 40 . . 30 . . . . . Squads Dispatched 4 | . 1 . 1 2 . . . . . Investigation . | . . . . . . . . . . Extermination . | . . . . . . . . . . Reinforcement 4 | . 1 . 1 2 . . . . . Assault . | . . . . . . . . . . Garrison . | . . . . . . . . . . Intercept . | . . . . . . . . . . Searches Triggered . | . . . . . . . . . . Construction Impeded 1 | . . . 1 . . . . . . Haulers Reinforced . | . . . . . . . . . . Active Scanning Responses . | . . . . . . . . . . Cargo Convoy Interrupts . | . . . . . . . . . . Stealth | -11 -10 -9 -8 -8 -7 -7 -7 -7 -7 --------- Run | Yrd Mat Mat Mat Sto Fac Low Low Zio Dee Distress Signals 6 | . 2 1 . 3 . . . . . Communications Jammed . | . . . . . . . . . . Distress Signals . | . . . . . . . . . . Times Spotted 51 | . 9 8 2 19 3 3 1 . 6 Peak Tracking Total 7 | . 4 5 1 4 3 2 1 . 7 Tactical Retreats 3 | . . . . 1 1 1 . . . Traps | -11 -10 -9 -8 -8 -7 -7 -7 -7 -7 ------- Run | Yrd Mat Mat Mat Sto Fac Low Low Zio Dee Traps Triggered 3 | . . 1 . 2 . . . . . Indirectly . | . . . . . . . . . . Trap Hack Attempts . | . . . . . . . . . . Triggered . | . . . . . . . . . . Disarmed . | . . . . . . . . . . Reprogrammed . | . . . . . . . . . . Reused . | . . . . . . . . . . Traps Extracted . | . . . . . . . . . . Installed . | . . . . . . . . . . Triggered . | . . . . . . . . . . Machines | -11 -10 -9 -8 -8 -7 -7 -7 -7 -7 ---------- Run | Yrd Mat Mat Mat Sto Fac Low Low Zio Dee Machines Disabled 6 | . 2 . . 3 1 . . . . Max in Single Turn 1 | . 1 . . 1 1 . . . . Machines Repaired . | . . . . . . . . . . Machines Dismantled . | . . . . . . . . . . Machines Sabotaged . | . . . . . . . . . . Overloaded Fab Kills . | . . . . . . . . . . Hacking | -11 -10 -9 -8 -8 -7 -7 -7 -7 -7 --------- Run | Yrd Mat Mat Mat Sto Fac Low Low Zio Dee Machines Accessed 5 | . 1 . 1 2 . 1 . . . Terminals 3 | . 1 . . 2 . . . . . Fabricators . | . . . . . . . . . . Repair Stations . | . . . . . . . . . . Recycling Units 1 | . . . 1 . . . . . . Scanalyzers . | . . . . . . . . . . Garrison Access . | . . . . . . . . . . Total Hacks 7 | . 3 . 1 2 . 1 . . . Successful 5 | . 1 . 1 2 . 1 . . . Failed 2 | . 2 . . . . . . . . Catastrophic 1 | . 1 . . . . . . . . Database Lockouts . | . . . . . . . . . . Manual 8 | . 1 . . 2 . . . 5 . Terminals 5 | . 3 . . 2 . . . . . Fabricators . | . . . . . . . . . . Repair Stations . | . . . . . . . . . . Recycling Units 1 | . . . 1 . . . . . . Scanalyzers . | . . . . . . . . . . Garrison Access . | . . . . . . . . . . Terminal Hacks 4 | . 1 . . 2 . 1 . . . Open Door 2 | . . . . 1 . 1 . . . Emergency Access Points 1 | . . . . 1 . . . . . Alert Level 1 | . 1 . . . . . . . . Fabricator Hacks . | . . . . . . . . . . Repair Station Hacks . | . . . . . . . . . . Recycling Unit Hacks 1 | . . . 1 . . . . . . Report Inventory 1 | . . . 1 . . . . . . Scanalyzer . | . . . . . . . . . . Garrison Access Hacks . | . . . . . . . . . . Unauthorized Hacks . | . . . . . . . . . . Terminals . | . . . . . . . . . . Fabricators . | . . . . . . . . . . Repair Stations . | . . . . . . . . . . Recycling Units . | . . . . . . . . . . Scanalyzers . | . . . . . . . . . . Garrison Access . | . . . . . . . . . . Data Cores Recovered . | . . . . . . . . . . Used . | . . . . . . . . . . Hacking Detections 2 | . 1 . . 1 . . . . . Full Trace Events . | . . . . . . . . . . Feedback Events . | . . . . . . . . . . Feedback Blocked . | . . . . . . . . . . Robot Schematics Acquired 2 | . . . . . . . . 2 . Robots Built . | . . . . . . . . . . Authchips . | . . . . . . . . . . Time . | . . . . . . . . . . Total Robot Build Rating . | . . . . . . . . . . Part Schematics Acquired 15 | . . . . . . . . 15 . Parts Built . | . . . . . . . . . . Authchips . | . . . . . . . . . . Time . | . . . . . . . . . . Total Part Build Rating . | . . . . . . . . . . Parts Repaired . | . . . . . . . . . . Time . | . . . . . . . . . . Parts Recycled . | . . . . . . . . . . Recycled Matter . | . . . . . . . . . . Retrieved Matter . | . . . . . . . . . . Retrieved Components . | . . . . . . . . . . Parts Scanalyzed . | . . . . . . . . . . Part Schematics Acquired . | . . . . . . . . . . Parts Damaged . | . . . . . . . . . . Bothacking | -11 -10 -9 -8 -8 -7 -7 -7 -7 -7 ------------ Run | Yrd Mat Mat Mat Sto Fac Low Low Zio Dee Used RIF Installer . | . . . . . . . . . . Robots Hacked 1 | . . . . . . 1 . . . Non-combat 1 | . . . . . . 1 . . . Combat . | . . . . . . . . . . Robot Hacks Applied 1 | . . . . . . 1 . . . parse_system 1 | . . . . . . 1 . . . Relay Couplers Released . | . . . . . . . . . . Fabnet Peak Effective % . | . . . . . . . . . . Robots Rewired . | . . . . . . . . . . Allies Hacked . | . . . . . . . . . . Hacks Repelled . | . . . . . . . . . . Allies | -11 -10 -9 -8 -8 -7 -7 -7 -7 -7 -------- Run | Yrd Mat Mat Mat Sto Fac Low Low Zio Dee Total Allies 4 | . . . . . . . . 4 . Largest Group 4 | . . . . . . . . 4 3 Highest-Rated Group 156 | . . . . . . . . 156 119 Highest-Rated Ally 40 | . . . . . . . . 40 40 Total Orders . | . . . . . . . . . . Ally Attacks . | . . . . . . . . . . Total Damage . | . . . . . . . . . . Kills . | . . . . . . . . . . Allies Corrupted . | . . . . . . . . . . Allies Melted . | . . . . . . . . . . Intel | -11 -10 -9 -8 -8 -7 -7 -7 -7 -7 ------- Run | Yrd Mat Mat Mat Sto Fac Low Low Zio Dee Active Infowar (turns) 3658 | 16 196 268 234 559 223 481 427 1118 136 Optics 3446 | . . 268 234 559 223 481 427 1118 136 Terrain 212 | 16 196 . . . . . . . . Decoding 856 | . . . . . . . . 720 136 Robot Analysis Total . | . . . . . . . . . . Derelict Logs Recovered 3 | . . . . . . 1 . 2 . Drone Launches . | . . . . . . . . . . Drone Recoveries . | . . . . . . . . . . Exploration | -11 -10 -9 -8 -8 -7 -7 -7 -7 -7 ------------- Run | Yrd Mat Mat Mat Sto Fac Low Low Zio Dee Turns Passed 4407 | 72 346 298 240 635 223 898 427 1118 150 Spaces Moved 3219 | 44 208 209 187 367 164 711 324 874 131 Core 32 | 2 . . . . . . . . 30 Treads . | . . . . . . . . . . Legs 2291 | . . . . 117 164 711 324 874 101 Wheels 896 | 42 208 209 187 250 . . . . . Hover . | . . . . . . . . . . Flight . | . . . . . . . . . . Fastest Speed 50 | 50 90 100 93 93 120 120 120 120 50 Average Speed 119 | 87 95 109 106 134 120 120 120 124 111 Slowest Speed 500 | 90 100 115 108 260 190 120 190 125 500 Overloaded Moves . | . . . . . . . . . . Propulsion Burnouts . | . . . . . . . . . . Robots Hopped . | . . . . . . . . . . Potential Cave-ins . | . . . . . . . . . . Cave-ins Triggered . | . . . . . . . . . . Exploration Rate (%) 38 | 3 38 23 18 51 5 84 46 90 29 Regions Visited 9 Branch Regions 5 Pre-discovered Areas 2 | . . . . . . 1 . 1 . Known Exits Taken . | . . . . . . . . . . Unknown Exits Taken 9 | 1 1 1 1 1 1 1 1 1 . Scrap Searched 7 | . . . . . . 3 1 3 . Spaces Dug 3 | . . . 3 . . . . . . Terrain Destroyed 94 | . 26 13 3 18 28 4 2 . . Melee 3 | . . . 3 . . . . . . Projectile 17 | . . . . 11 . 4 2 . . AOE 74 | . 26 13 . 7 28 . . . . Terrain Rammed . | . . . . . . . . . . Walls Destroyed . | . . . . . . . . . . Machines Disabled . | . . . . . . . . . . Actions | -11 -10 -9 -8 -8 -7 -7 -7 -7 -7 --------- Run | Yrd Mat Mat Mat Sto Fac Low Low Zio Dee Total 3520 | 63 284 251 214 423 178 731 340 903 133 Wait 30 | . 12 7 . . 1 1 1 8 . Move 3210 | 43 207 208 186 366 163 710 323 873 131 Hop . | . . . . . . . . . . Pick Up 44 | 8 7 6 11 3 . 4 1 4 . Fast Attach 32 | 7 6 4 2 6 1 . 1 5 . Attach 9 | . 1 2 2 2 2 . . . . Detach 1 | . . 1 . . . . . . . Swap 17 | . 2 2 2 2 4 2 2 1 . Drop 45 | . 10 7 5 7 1 2 3 10 . Fire 123 | 5 39 14 3 37 6 10 9 . . Melee 8 | . . . 3 . . 1 . 2 2 Ram . | . . . . . . . . . . Kick . | . . . . . . . . . . Crush . | . . . . . . . . . . Escape Stasis . | . . . . . . . . . . Rewire 1 | . . . . . . 1 . . . Trap . | . . . . . . . . . . Miscellaneous . | . . . . . . . . . . Route ------- -11/Scrapyard -10/Materials -9/Materials -8/Materials -8/Storage -7/Factory -7/Lower Caves -7/Lower Caves -7/Zion (discovered 2 exits: [*Dee] / [*Pro]) -7/Deep Caves History --------- Turn | Location | Event 17 | -11/Scrapyard | Discovered new exit (range 16) 73 | -11/Scrapyard | Entered Materials 260 | -10/Materials | Core integrity fell below 50% 302 | -10/Materials | Lost 3 parts (1n1u1w) 311 | -10/Materials | Build established: Mutant 335 | -10/Materials | Discovered new exit (range 16) 419 | -10/Materials | Entered another Materials area 419 | -9/Materials | Evolved 2 slots: Weapon x2 680 | -9/Materials | Discovered new exit (range 18) 717 | -9/Materials | Entered another Materials area 717 | -8/Materials | Evolved 2 slots: Propulsion x1, Utility x1 930 | -8/Materials | Discovered new exit (range 8) 957 | -8/Materials | Entered Storage 1009 | -8/Storage | Build established: Gunner 1580 | -8/Storage | Discovered new exit (range 7) 1592 | -8/Storage | Entered Factory 1592 | -7/Factory | Evolved 2 slots: Propulsion x1, Utility x1 1809 | -7/Factory | Discovered new exit (range 4) 1815 | -7/Factory | Entered Lower Caves 2039 | -7/Lower Caves | Build established: Tank 2532 | -7/Lower Caves | Learned location of Zion (-7) 2695 | -7/Lower Caves | Discovered new exit (range 14) 2713 | -7/Lower Caves | Entered another Lower Caves area 3128 | -7/Lower Caves | Discovered new exit (range 11) 3140 | -7/Lower Caves | Entered Zion 3299 | -7/Zion | Discovered new exit (range 20) 3506 | -7/Zion | Build established: Derelict-Mutant 3515 | -7/Zion | Learned location of Quarantine (-2) 3692 | -7/Zion | Met Imprinter 3714 | -7/Zion | Imprinted 3716 | -7/Zion | Declared Zion's savior 3784 | -7/Zion | Given A8's code to call for help 3794 | -7/Zion | Learned Factory emergency access door positions 3948 | -7/Zion | Acquired unknown access codes intercepted by a Zionite 3968 | -7/Zion | Learned Factory terminal intel 4081 | -7/Zion | Given the Hacking Drone Bay 4226 | -7/Zion | Opened final containment barrier to the Deep Caves 4243 | -7/Zion | Discovered new exit (range 5) 4246 | -7/Zion | Saw the warning signs outside the Deep Caves entrance 4258 | -7/Zion | Entered Deep Caves 4258 | -7/Deep Caves | Accompanied by 4 allies 4366 | -7/Deep Caves | Attacked by Z-Imprinter 4393 | -7/Deep Caves | Core integrity fell below 50% 4394 | -7/Deep Caves | Released all parts (7) 4399 | -7/Deep Caves | Z-Facility disabled 4400 | -7/Deep Caves | Core integrity fell below 20% 4408 | -7/Deep Caves | Destroyed by KD-6X2(z) with Zionite Laser-S Last Messages --------------- 04353_ NEW_ZION: Z-Facility proximity alert. Z-Imprinter: GET AWAY FROM HERE! I've worked too hard for our future just to have you ruin everything! 04376_ Imp. Medium Armor Plating destroyed. 04379_ Hvy. Ion Engine destroyed. 04381_ HO-8Y9(o) is busy at the terminal. 04384_ Carbon-fiber Leg destroyed. 04385_ Destroyed Prototype Hover Unit. 04385_ Mak. Sword follow-up attack on Z-Imprinter. 04385_ Z-Imprinter Prototype Protection severed. 04385_ Carbon-fiber Leg destroyed. 04389_ Mak. Leg destroyed. 04394_ Released Mak. Sword. 04394_ Released Lrg. Storage Unit. 04394_ Released Adv. Visual Processing Unit. 04394_ Released Mak. Sword. 04394_ Released 0b10 Decoder Chip [Generic]. 04399_ Z-Facility disabled. Map ----- +----------------------------------------------------+ | | | | | | | | | | | | | | | | | | | | | | | | | ????????????????????????#????????????????????????? | | ???????????????????????? ??????###############???? | | ???????????????????????# ???#### ##??? | | ???????????????????????# ??## #### | | ???????????????######??# ?## #""" | | ?????????????###zz # #?# ## "" | | ???????????? # z ## | | ???????????? | | ???????????? | | ??????????? | | ??????????? | | ?????????? """"" """" | | ?????????? """""""""""""" | | ?????????? @ """""""""""""" | | ?????????? """""""""""""" | | ?????????? """"""""""" | | ??????????? """""""""""""" | | ??????????? """"?????""""" | | ???????????? """"?????""""" | | ???????????? """"???????""" | | ???????????? """"??????? " | | ????????????? "????????? | | ????????????? "????????? | | ?????????????? "???????? | | ?????????????? "???????? | | ???????????????? "?????????" | | ?????????????????? "???????????? | | ????????????????????? "?????????????? | | ??????????????????????? ??????????????????? | | ?????????????????????????????????????????????????? | | ?????????????????????????????????????????????????? | | ?????????????????????????????????????????????????? | | ?????????????????????????????????????????????????? | | ?????????????????????????????????????????????????? | | ?????????????????????????????????????????????????? | | ?????????????????????????????????????????????????? | | ?????????????????????????????????????????????????? | | ?????????????????????????????????????????????????? | +----------------------------------------------------+ Best States ------------- Heat Dissipation 34 Energy Generation 14 Energy Capacity 280 Matter Stores 300 Matter Capacity 300 Sight Range 20 Terrain Scan Range 16 Terrain Scan Density 10 Armor Coverage 375 Evasion (%) 55 Kinecelleration 30 Item Schematics ----------------- Imp. Shield Generator | -7/Zion | Archive Hvy. Plasma Cannon | -7/Zion | Archive Imp. KE Penetrator | -7/Zion | Archive Lgt. Angular Momentum Engine | -7/Zion | Archive Component Analysis Suite | -7/Zion | Archive System Guard | -7/Zion | Archive Flak Gun | -7/Zion | Archive Enh. Gauss Cannon | -7/Zion | Archive Antigrav System | -7/Zion | Archive Arc Projector | -7/Zion | Archive Arm. Leg | -7/Zion | Archive Energy Filter | -7/Zion | Archive Adv. Melee Analysis Suite | -7/Zion | Archive Jamming Amplifier | -7/Zion | Archive Transmission Jammer | -7/Zion | Archive Robot Schematics ------------------ T-07 Excavator | -7/Zion | Archive B-48 Gladiator | -7/Zion | Archive Fabricated ------------ Nothing Repaired ---------- Nothing Alien Tech Used ----------------- None Achievements -------------- Adventurer Signs Are For Wimps Challenges ------------ None Game ------ Seed DroneAngularDriveblaster Manual? 0 Play Time 00:42:42 Cumulative 17.9 hours Start 2025.07.27 @ 19:52:30 End 2025.07.27 @ 20:33:59 Sessions 1 Manual Loads 0 Difficulty Rogue Special Mode None Game No. 25 Rogue 25 Adventurer 0 Explorer 0 Win Type - Total 0 Types 0/0/0/0/0/0/0/0/0/0 Lore% 21 Gallery% 24 Achievement% 22 Wizard Run 0 Options --------- Layout 1 ASCII 0 Keyboard 0 Movement Numpad Keybinds 0 Fullscreen 1 Font 24/Smallcaps Map View 50x35 Zoom Use 0% Tactical HUD 1 Map Filters NONE Filters NONE Steam 1 RUN: d2240ba7-ad5a-4e16-80b7-fdb8208de247